bitfinex-derivatives/quotes_ETHF0:USTF0_20250624
["timestamp","ask_amount","ask_price","bid_price","bid_amount"]
[1750804932921,24.886,2438.9,2438.8,0.65576]
[1750804933122,24.886,2438.9,2438.8,1.35976]
[1750804933719,6.9453107,2439.1,2439.0,0.65571]
[1750804933921,31.8313107,2439.1,2439.0,0.65571]
[1750804934420,31.1756107,2439.1,2439.0,0.65571]
[1750804934918,6.9452907,2439.1,2439.0,0.65571]
[1750804935120,31.1746107,2439.1,2439.0,0.65571]
[1750804935916,31.8302907,2439.1,2439.0,0.65571]
[1750804937311,31.1746107,2439.1,2439.0,0.65571]
[1750804937517,5.6028107,2439.1,2439.0,0.65571]
[1750804937717,30.4868107,2439.1,2439.0,0.65571]
[1750804939626,31.1424907,2439.1,2439.0,0.65571]
[1750804940128,28.0918,2439.1,2439.0,0.65571]
[1750804941020,28.74748,2439.1,2439.0,0.65571]
[1750804941227,0.65571,2439.0,2438.9,1.31522]
[1750804941527,0.96648476,2439.0,2438.9,1.31522]
[1750804942111,0.96648476,2439.0,2438.9,2.68482]
[1750804942516,25.84748476,2439.0,2438.9,2.68482]
[1750804942720,24.881,2439.0,2438.9,2.68482]
[1750804945425,3.2078,2439.1,2439.0,0.65571]
[1750804945628,29.05366911,2439.1,2439.0,0.65571]
[1750804947027,4.17366911,2439.1,2439.0,0.65571]
[1750804947228,29.05266911,2439.1,2439.0,0.65571]
[1750804950222,29.05266911,2439.1,2439.0,2.08841]
[1750804952524,29.04966911,2439.1,2439.0,2.08841]
[1750804952724,4.17366911,2439.1,2439.0,2.08841]
[1750804953128,3.2078,2439.4,2439.3,0.65563]
[1750804953328,4.17218461,2439.4,2439.3,0.65563]
[1750804953629,29.04818461,2439.4,2439.3,0.65563]
[1750804954330,4.17218461,2439.4,2439.3,0.65563]
[1750804954634,29.04718461,2439.4,2439.3,0.65563]
[1750804955129,3.2078,2439.8,2439.7,0.65552]
[1750804955324,28.7613,2439.8,2439.7,0.65552]
[1750804958635,24.872,2440.0,2439.9,0.65545]
[1750804959926,25.52744,2440.0,2439.9,0.65545]
[1750804960126,24.872,2440.0,2439.9,0.65545]
[1750804960636,3.2078,2440.1,2440.0,0.65544]
[1750804960936,28.0778,2440.1,2440.0,0.65544]
[1750804961734,3.2078,2440.1,2440.0,0.65544]
[1750804961936,3.892,2440.1,2440.0,0.65544]
[1750804962732,3.2078,2440.1,2440.0,0.65544]
[1750804962926,28.0768,2440.1,2440.0,0.65544]
[1750804965931,28.0738,2440.1,2440.0,0.65544]
[1750804967633,3.2078,2440.1,2440.0,0.65544]
[1750804967836,28.0728,2440.1,2440.0,0.65544]
[1750804970435,3.2078,2440.1,2440.0,0.65544]
[1750804971630,3.2078,2440.1,2439.9,0.65545]
[1750804971631,0.65546,2440.0,2439.9,0.65545]
[1750804971834,3.34026,2440.0,2439.9,0.65545]
[1750804972634,0.65548,2439.9,2439.8,0.65548]
[1750804972842,29.2418907,2439.9,2439.8,0.65548]
[1750804973442,29.2419007,2439.9,2439.7,0.6555]
[1750804973741,4.5148,2439.8,2439.7,0.6555]
[1750804977450,3.2078,2439.8,2439.7,0.6555]
[1750804979237,4.6369,2439.8,2439.7,0.6555]
[1750804980347,5.6369,2439.8,2439.7,0.6555]
[1750804983648,6.59477724,2439.8,2439.7,0.6555]
[1750804984246,5.16567724,2439.8,2439.7,0.6555]
[1750804984448,5.82117724,2439.8,2439.7,0.6555]
[1750804984947,5.16567724,2439.8,2439.7,0.6555]
[1750804985850,30.02667724,2439.8,2439.7,0.6555]
[1750804987751,30.68217724,2439.8,2439.7,0.6555]
[1750804988049,30.02667724,2439.8,2439.7,0.6555]
[1750804988751,26.81887724,2439.8,2439.7,0.6555]
[1750804990955,27.47437724,2439.8,2439.7,0.6555]
[1750804992856,1.95787724,2439.8,2439.7,0.6555]
[1750804993056,25.859,2439.8,2439.7,0.6555]
[1750804993453,25.859,2439.8,2439.7,3.3834]
[1750804996959,1.0,2439.8,2439.7,3.3834]
[1750804997161,3.2078,2440.1,2440.0,0.65544]
[1750804997361,29.02541198,2440.1,2440.0,0.65544]
[1750804997862,4.16741198,2440.1,2440.0,0.65544]
[1750804998053,3.2078,2440.1,2440.0,0.65544]
[1750804998255,3.86315,2440.4,2440.3,0.65536]
[1750804998455,25.51237,2440.3,2440.2,0.65538]
[1750804998656,0.95944449,2440.3,2440.2,0.65538]
[1750804998854,0.95944449,2440.3,2440.2,0.66538]
[1750804999258,28.0648,2440.4,2440.3,0.65536]
[1750804999458,29.0240646,2440.4,2440.3,0.65536]
[1750805002077,30.0240646,2440.4,2440.3,0.65536]
[1750805003672,29.0648,2440.4,2440.3,0.65536]
[1750805004779,30.02269128,2440.4,2440.3,0.65536]
[1750805005280,29.0648,2440.4,2440.3,0.65536]
[1750805008776,29.72013,2440.4,2440.3,0.65536]
[1750805011382,29.0648,2440.4,2440.3,0.65536]
[1750805011883,29.72013,2440.4,2440.3,0.65536]
[1750805012481,29.0648,2440.4,2440.3,0.65536]
[1750805013585,29.72013,2440.4,2440.3,0.65536]
[1750805013985,26.51233,2440.4,2440.3,0.65536]
[1750805014384,25.857,2440.4,2440.3,0.65536]
[1750805014587,27.47137919,2440.4,2440.3,0.65536]
[1750805014778,29.86638989,2440.4,2440.3,0.65536]
[1750805015784,29.86638989,2440.4,2440.0,2.34879]
[1750805015785,0.65539,2440.3,2440.2,0.65537]
[1750805015987,0.65541,2440.2,2440.1,0.6554]
[1750805016284,3.0504207,2440.2,2440.1,0.6554]
[1750805016485,4.4719207,2440.2,2440.1,0.6554]
[1750805020887,2.07691,2440.2,2440.1,0.6554]
[1750805021388,3.03688998,2440.2,2440.1,0.6554]
[1750805022491,1.61538998,2440.2,2440.1,0.6554]
[1750805025194,0.95997998,2440.2,2440.1,0.6554]
[1750805025891,24.847,2440.2,2440.1,0.6554]
[1750805026092,25.80787879,2440.2,2440.1,0.6554]
[1750805027892,0.96087879,2440.2,2440.1,0.6554]
[1750805028092,25.80787879,2440.2,2440.1,0.6554]
[1750805028292,25.80787879,2440.2,2440.1,1.3475]
[1750805029704,24.847,2440.2,2440.1,1.3475]
[1750805029895,24.847,2440.2,2440.1,2.0483]
[1750805030195,24.847,2440.2,2440.1,3.3688]
[1750805033195,1.0,2440.4,2440.3,0.65536]
[1750805033395,26.80631501,2440.4,2440.3,0.65536]
[1750805034500,27.46164501,2440.4,2440.3,0.65536]
[1750805034705,26.80631501,2440.4,2440.3,0.65536]
[1750805037007,1.96131501,2440.4,2440.3,0.65536]
[1750805037205,26.80431501,2440.4,2440.3,0.65536]
[1750805043505,27.45964501,2440.4,2440.3,0.65536]
[1750805044008,26.80431501,2440.4,2440.3,0.65536]
[1750805046807,1.96131501,2440.4,2440.3,0.65536]
[1750805047006,26.80131501,2440.4,2440.3,0.65536]
[1750805048509,1.96131501,2440.4,2440.3,0.65536]
[1750805048708,26.80131501,2440.4,2440.3,0.65536]
[1750805053612,1.96131501,2440.4,2440.3,3.0503707]
[1750805053809,10.22793,2441.2,2440.6,1.63821]
[1750805054018,10.22793,2441.2,2441.1,0.65515]
[1750805054316,36.47603,2441.2,2441.1,0.65515]
[1750805054714,10.9839,2441.2,2441.1,0.65515]
[1750805054915,35.06492,2441.2,2441.1,0.65515]
[1750805056318,35.06292,2441.2,2441.1,0.65515]
[1750805056617,36.40192,2441.2,2441.1,0.65515]
[1750805057810,0.65515,2441.1,2441.0,0.65516]
[1750805058721,36.40193,2441.2,2441.1,0.65515]
[1750805059014,37.05783,2441.2,2441.1,0.65515]
[1750805059411,5.2027,2441.2,2441.1,0.65515]
[1750805059713,3.2078,2441.2,2441.1,0.65515]
[1750805059923,29.0398,2441.2,2441.1,0.65515]
[1750805060117,4.2078,2441.2,2441.1,0.65515]
[1750805060722,3.2078,2441.6,2441.5,0.65504]
[1750805061011,28.0398,2441.6,2441.5,0.65504]
[1750805061218,3.2078,2441.6,2441.5,0.65504]
[1750805061406,28.0398,2441.6,2441.5,0.65504]
[1750805062213,3.2078,2441.6,2441.5,0.65504]
[1750805062519,28.0378,2441.6,2441.5,0.65504]
[1750805062723,0.6559,2441.8,2441.7,0.65499]
[1750805063017,26.14086,2441.8,2441.7,0.65499]
[1750805063620,0.65499,2441.7,2441.6,0.65499]
[1750805064423,26.14087,2441.8,2441.6,0.65499]
[1750805064611,26.14087,2441.8,2441.7,0.65499]
[1750805064811,25.4859,2441.8,2441.7,0.65499]
[1750805065124,25.4839,2441.8,2441.7,0.65499]
[1750805065320,25.4839,2441.8,2441.4,2.0924]
[1750805065321,26.13886,2441.8,2441.6,0.65499]
[1750805065514,26.13886,2441.8,2441.7,0.65499]
[1750805067618,25.4839,2441.8,2441.3,0.7006]
[1750805067823,0.65504,2441.6,2441.5,0.65504]
[1750805071525,2.02404,2441.6,2441.5,0.65504]
[1750805072021,9.5768,2441.6,2441.2,0.6551]
[1750805072319,9.5768,2441.6,2440.7,4.09424809]
[1750805072320,0.65508,2441.4,2441.3,0.65509]
[1750805072517,33.22685,2441.5,2441.4,0.65507]
[1750805072717,32.5718,2441.5,2441.4,0.65507]
[1750805072916,33.22684,2441.5,2441.4,0.65507]
[1750805073119,0.6551,2441.3,2441.2,0.6551]
[1750805073520,0.65509,2441.4,2441.3,0.65509]
[1750805073725,25.47809,2441.4,2441.3,0.65509]
[1750805075027,24.823,2441.4,2441.3,0.65509]
[1750805075627,25.47807,2441.4,2441.3,0.65509]
[1750805079830,0.65513,2441.2,2441.0,2.1071]
[1750805080034,24.823,2441.1,2441.0,1.36957]
[1750805087836,24.823,2441.1,2441.0,0.65517]
[1750805090940,25.47815,2441.1,2441.0,0.65517]
[1750805091131,24.823,2441.1,2441.0,0.65517]
[1750805095340,25.47815,2441.1,2441.0,0.65517]
[1750805099340,26.43106378,2441.1,2441.0,0.65517]
[1750805100139,0.6552,2440.9,2440.8,2.45613809]
[1750805100442,0.65525,2440.7,2440.6,0.65526]
[1750805100742,26.42916378,2440.7,2440.6,0.65526]
[1750805100945,0.65528,2440.6,2440.5,1.32509]
[1750805101144,25.47626,2440.7,2440.6,0.65528]
[1750805101343,26.429923,2440.7,2440.6,0.65528]
[1750805104547,0.65528,2440.6,2440.5,1.32509]
[1750805104745,0.65532,2440.5,2440.4,0.65532]
[1750805104943,0.6836,2440.5,2440.4,0.65532]
[1750805105140,1.33891,2440.5,2440.4,0.65532]
[1750805105843,0.6889,2440.6,2440.5,0.65531]
[1750805106246,25.47627,2440.7,2440.6,0.65528]
[1750805106548,26.42744658,2440.7,2440.6,0.65528]
[1750805106752,0.65529,2440.6,2440.5,0.65529]
[1750805108053,0.65532,2440.5,2440.4,0.65531]
[1750805109952,1.34292,2440.5,2440.4,0.65531]
[1750805112051,1.34292,2440.5,2440.0,0.65543]
[1750805112052,0.65544,2440.1,2440.0,0.65543]
[1750805112248,27.8734307,2440.1,2440.0,0.89544]
[1750805112555,24.823,2440.1,2440.0,0.89544]
[1750805112858,3.8632,2440.2,2440.1,0.65542]
[1750805113058,28.6872,2440.2,2440.1,0.65542]
[1750805114651,29.3771,2440.2,2440.1,0.65542]
[1750805117859,3.2078,2440.2,2439.8,1.3233]
[1750805118059,24.825,2440.1,2440.0,0.65544]
[1750805119665,25.48042,2440.1,2440.0,0.65544]
[1750805120463,24.825,2440.1,2440.0,0.65544]
[1750805120762,25.48042,2440.1,2440.0,0.65544]
[1750805121566,26.46356,2440.1,2439.5,0.6964]
[1750805121761,3.2078,2439.8,2439.5,2.46787]
[1750805122063,0.65555,2439.6,2439.5,0.7159]
[1750805122265,0.6556,2439.4,2439.3,4.57932]
[1750805122568,25.4816,2439.4,2439.3,4.94932]
[1750805122867,24.826,2439.4,2439.3,4.94932]
[1750805123266,25.4816,2439.4,2439.3,4.2937]
[1750805123764,25.4816,2439.4,2439.3,0.7159]
[1750805126662,0.65563,2439.3,2439.2,0.65566]
[1750805126969,0.65578,2438.8,2438.7,0.65577]
[1750805127268,25.48478,2438.8,2438.7,1.10577]
[1750805128469,24.829,2438.8,2438.7,1.10577]
[1750805130261,24.829,2438.8,2438.7,2.44887]
[1750805130465,3.2078,2439.4,2439.3,0.65563]
[1750805131058,3.2078,2439.4,2439.1,2.7583]
[1750805131059,25.49856,2439.6,2439.5,0.65558]
[1750805134471,0.65558,2439.5,2439.4,0.65559]
[1750805134669,3.86338,2439.5,2439.4,0.65559]
[1750805136575,0.65562,2439.4,2439.3,0.65562]
[1750805139478,6.2584007,2439.5,2439.4,0.6556]
[1750805139677,3.86339,2439.5,2439.4,0.6556]
[1750805145384,36.00590408,2439.5,2439.4,0.6556]
[1750805147281,36.00665815,2439.5,2439.4,0.6556]
[1750805147478,0.94926815,2439.5,2439.4,0.6556]
[1750805147684,24.842,2439.5,2439.4,0.6556]
[1750805149592,0.65556,2439.6,2439.5,0.65558]
[1750805149785,26.45164381,2439.6,2439.5,0.65558]
[1750805152392,0.65558,2439.5,2439.4,1.31938]
[1750805152599,1.60566381,2439.5,2439.4,1.31938]
[1750805155900,0.95008381,2439.5,2439.4,1.31938]
[1750805165210,0.95008381,2439.5,2439.4,3.31938]
[1750805165512,24.835,2439.6,2439.5,0.65558]
[1750805165807,25.7871411,2439.6,2439.5,4.06638]
[1750805166009,25.7871411,2439.6,2439.5,2.09638]
[1750805168400,25.7871411,2439.6,2439.5,4.45638]
[1750805168605,25.7871411,2439.6,2439.5,2.09638]
[1750805168806,25.7871411,2439.6,2439.5,4.03638]
[1750805172606,25.7871411,2439.6,2439.5,2.09638]
[1750805174708,25.7871411,2439.6,2439.3,2.45613809]
[1750805174907,25.7871411,2439.6,2439.2,0.6918]
[1750805174908,3.3471518,2439.5,2439.2,0.6918]
[1750805175106,3.0506007,2439.5,2439.4,0.6556]
[1750805175313,4.00253432,2439.5,2439.4,0.6556]
[1750805177919,3.34694432,2439.5,2439.4,0.6556]
[1750805178222,25.78493362,2439.5,2439.4,0.6556]
[1750805178422,26.44051362,2439.5,2439.4,0.6556]
[1750805178821,0.65561,2439.4,2439.3,0.65561]
[1750805179022,1.60754362,2439.4,2439.3,0.65561]
[1750805179618,0.95193362,2439.4,2439.3,0.65561]
[1750805180522,1.60753362,2439.4,2439.3,0.65561]
[1750805180821,0.95193362,2439.4,2439.3,0.65561]
[1750805181319,1.60753362,2439.4,2439.3,0.65561]
[1750805181514,0.95193362,2439.4,2439.3,0.65561]
[1750805183620,1.60753362,2439.4,2439.3,0.65561]
[1750805183923,0.95193362,2439.4,2439.3,0.65561]
[1750805184925,1.60753362,2439.4,2439.3,0.65561]
[1750805185117,0.95193362,2439.4,2439.3,0.65561]
[1750805186724,1.60753362,2439.4,2439.3,0.65561]
[1750805187125,0.95193362,2439.4,2439.3,0.65561]
[1750805188527,25.78593362,2439.4,2439.3,0.65561]
[1750805189227,0.95193362,2439.4,2439.3,2.90561]
[1750805189526,0.95193362,2439.4,2439.3,3.6476]
[1750805189527,24.834,2439.4,2439.3,3.6476]
[1750805190026,24.834,2439.4,2439.3,4.30323]
[1750805190529,6.36,2439.7,2439.6,0.65555]
[1750805190722,32.14830711,2439.7,2439.6,0.65555]
[1750805190921,25.78830711,2439.7,2439.6,0.65555]
[1750805192236,0.95430711,2439.7,2439.6,0.65555]
[1750805192536,3.2078,2439.9,2439.8,0.6555]
[1750805192717,28.69726,2440.0,2439.9,0.65547]
[1750805193730,28.0418,2440.0,2439.9,0.65547]
[1750805194031,28.0408,2440.0,2439.9,0.65547]
[1750805195335,28.0408,2440.0,2439.9,2.04987]
[1750805196533,1.31131,2440.2,2440.1,0.65542]
[1750805196733,0.6559,2440.2,2440.1,0.65542]
[1750805196935,6.2581907,2440.3,2440.2,0.65539]
[1750805197133,31.0901907,2440.3,2440.2,0.65539]
[1750805197536,0.6554,2440.2,2440.1,0.6554]
[1750805198136,31.0901907,2440.3,2440.2,0.65539]
[1750805198835,6.2581907,2440.3,2440.2,0.65539]
[1750805199039,31.0901907,2440.3,2440.2,0.65539]
[1750805199336,28.0398,2440.3,2440.2,0.65539]
[1750805200039,28.0388,2440.3,2440.2,0.65539]
[1750805200239,3.2078,2440.3,2440.2,0.65539]
[1750805200441,28.0388,2440.3,2440.2,0.65539]
[1750805200836,9.5648,2440.6,2440.5,0.65531]
[1750805201042,34.3958,2440.6,2440.5,0.65531]
[1750805201240,28.0388,2440.6,2440.5,0.65531]
[1750805201741,0.65524,2440.8,2440.7,0.65525]
[1750805201937,3.2078,2440.9,2440.8,0.65523]
[1750805202141,24.84,2441.0,2440.9,0.6552]
[1750805205752,0.65512,2441.2,2441.0,0.65516]
[1750805205945,25.48515,2441.1,2440.9,0.65518]
[1750805206251,27.8801607,2441.1,2440.9,0.65518]
[1750805206443,27.8801607,2441.1,2441.0,0.65517]
[1750805206639,24.83,2441.1,2441.0,0.65517]
[1750805207150,24.83,2441.1,2441.0,1.97877]
[1750805207348,24.828,2441.1,2441.0,1.97877]
[1750805208146,11.3833907,2441.4,2441.2,0.65512]
[1750805208354,24.827,2441.3,2441.2,0.65512]
[1750805209146,25.48209,2441.3,2441.2,0.65512]
[1750805209346,25.48209,2441.3,2441.1,0.65513]
[1750805209844,25.48209,2441.3,2441.2,0.65512]
[1750805210044,24.827,2441.3,2441.2,0.65512]
[1750805210252,24.827,2441.3,2441.1,0.65513]
[1750805210446,0.65512,2441.2,2441.1,0.65513]
[1750805211356,25.48211,2441.3,2441.1,0.65513]
[1750805212552,0.65511,2441.3,2441.1,0.65513]
[1750805212757,24.823,2441.2,2441.1,0.65513]
[1750805213159,7.01011,2441.3,2440.9,3.2078]
[1750805213160,6.355,2441.3,2441.2,0.65512]
[1750805213356,31.178,2441.3,2441.2,0.65512]
[1750805214052,31.178,2441.3,2440.9,3.2078]
[1750805214251,3.0501607,2441.1,2441.0,0.65516]
[1750805214452,2.3950107,2441.1,2441.0,0.65516]
[1750805214855,3.0501607,2441.1,2441.0,0.65516]
[1750805215254,3.7506607,2441.1,2441.0,0.65516]
[1750805215456,3.0955107,2441.1,2441.0,0.65516]
[1750805216458,3.7506607,2441.1,2441.0,0.65516]
[1750805217459,0.65517,2441.0,2440.9,3.86299]
[1750805217761,24.821,2441.0,2440.9,3.86299]
[1750805220959,24.821,2441.0,2440.9,0.65519]
[1750805222460,24.821,2441.0,2440.9,3.86299]
[1750805223866,25.47617,2441.0,2440.9,3.863]
[1750805224161,25.47617,2441.0,2440.9,0.6552]
[1750805224362,26.82907,2441.0,2440.9,0.6552]
[1750805224565,26.1739,2441.0,2440.9,0.6552]
[1750805224762,26.82907,2441.0,2440.9,0.6552]
[1750805225264,26.1739,2441.0,2440.9,0.6552]
[1750805226560,26.82907,2441.0,2440.9,0.6552]
[1750805226960,26.82909,2441.0,2440.9,0.6552]
[1750805227269,27.77431758,2441.0,2440.9,0.6552]
[1750805229063,0.94522758,2441.0,2440.9,0.6552]
[1750805229271,25.76522758,2441.0,2440.9,0.6552]
[1750805229662,28.97302758,2441.0,2440.4,2.45613809]
[1750805229969,3.0502807,2440.7,2440.5,0.65529]
[1750805230169,25.76822758,2440.6,2440.5,0.65529]
[1750805230472,27.08500758,2440.6,2440.5,0.65529]
[1750805230671,26.42972758,2440.6,2440.5,0.65529]
[1750805231171,27.08500758,2440.6,2440.5,0.65529]
[1750805231372,27.08500758,2440.6,2440.4,1.36741]
[1750805231574,0.94522758,2440.5,2440.4,1.36741]
[1750805232769,25.4845,2440.6,2440.4,0.7121]
[1750805232974,25.4845,2440.6,2440.5,0.65531]
[1750805233177,26.43147998,2440.6,2440.5,0.65531]
[1750805233670,25.76997998,2440.6,2440.5,0.65531]
[1750805233974,6.354,2441.1,2441.0,0.65517]
[1750805234173,32.12200788,2441.1,2441.0,0.65517]
[1750805234365,34.51701858,2441.1,2441.0,0.65517]
[1750805234565,34.51701858,2441.1,2440.8,0.6748]
[1750805234762,25.79000788,2441.0,2440.8,0.65522]
[1750805234966,24.843,2441.0,2440.9,0.6552]
[1750805235175,25.79003592,2441.0,2440.9,0.6552]
[1750805235369,0.94700413,2441.0,2440.9,0.6552]
[1750805235671,0.6551,2441.3,2440.8,3.85453809]
[1750805235971,25.50709,2441.4,2441.2,0.65511]
[1750805236573,0.65509,2441.3,2441.2,0.65511]
[1750805236769,25.50709,2441.4,2441.2,0.65511]
[1750805236970,24.852,2441.4,2441.3,0.65509]
[1750805237271,25.51307,2441.4,2441.2,0.6551]
[1750805238480,25.51307,2441.4,2441.3,0.65509]
[1750805238681,24.858,2441.4,2441.3,0.65509]
[1750805238881,25.51307,2441.4,2441.2,0.6551]
[1750805239981,25.51307,2441.4,2441.3,0.65509]
[1750805240782,25.51307,2441.4,2441.2,0.6551]
[1750805240978,0.65509,2441.3,2441.2,0.6551]
[1750805241379,25.51308,2441.4,2441.2,0.6551]
[1750805243184,0.65512,2441.2,2441.1,0.65514]
[1750805243684,1.37412,2441.2,2441.1,0.65514]
[1750805243889,5.719,2441.2,2440.8,0.65522]
[1750805244081,29.2598107,2441.1,2441.0,0.65517]
[1750805244276,28.6004607,2441.1,2441.0,0.65517]
[1750805244981,28.6004607,2441.1,2440.9,0.65519]
[1750805245482,3.7164607,2441.1,2440.9,0.65519]
[1750805245682,24.901,2441.0,2440.9,0.65519]
[1750805246084,3.0613107,2441.1,2441.0,0.65517]
[1750805246285,28.6174607,2441.1,2441.0,0.65517]
[1750805246888,27.9623107,2441.1,2441.0,0.65517]
[1750805247587,29.55988656,2441.1,2441.0,0.65517]
[1750805247987,28.90473656,2441.1,2441.0,0.65517]
[1750805248377,28.23843656,2441.1,2441.0,0.65517]
[1750805250587,28.89358656,2441.1,2441.0,0.65517]
[1750805250988,25.84342586,2441.1,2441.0,0.65517]
[1750805251583,25.83042586,2441.1,2441.0,0.65517]
[1750805254283,25.83042586,2441.1,2441.0,2.05207]
[1750805256187,0.94242586,2441.1,2441.0,2.05207]
[1750805256386,25.83942586,2441.1,2441.0,2.05207]
[1750805257195,26.49457586,2441.1,2441.0,2.05207]
[1750805257696,25.83942586,2441.1,2441.0,2.05207]
[1750805258092,25.83342586,2441.1,2441.0,2.05207]
[1750805258290,0.94242586,2441.1,2441.0,2.05207]
[1750805258493,25.83342586,2441.1,2441.0,2.05207]
[1750805258902,0.65517,2441.0,2440.9,1.35318]
[1750805259086,0.65523,2440.8,2440.7,3.2078]
[1750805259287,27.9402407,2440.8,2440.7,3.2078]
[1750805259487,28.88266656,2440.8,2440.7,3.2078]
[1750805259689,30.31976656,2440.8,2440.7,3.2078]
[1750805260090,30.31976656,2440.8,2440.0,8.04061]
[1750805260091,1.63827,2440.6,2440.0,3.86324]
[1750805260287,2.3950107,2440.3,2440.2,0.65537]
[1750805260496,3.99279656,2440.3,2440.2,0.65537]
[1750805260699,3.33743656,2440.3,2440.2,0.65537]
[1750805261385,0.65534,2440.4,2440.2,0.65537]
[1750805261589,0.94210546,2440.3,2440.2,0.65537]
[1750805262394,34.3613407,2440.5,2440.3,0.65535]
[1750805262595,0.94190715,2440.4,2440.3,0.65535]
[1750805263489,24.91,2440.4,2440.3,0.65535]
[1750805264498,0.65528,2440.6,2440.5,0.65531]
[1750805264796,26.51768153,2440.6,2440.5,0.65531]
[1750805265399,25.86240153,2440.6,2440.5,0.65531]
[1750805266197,26.51768153,2440.6,2440.5,0.65531]
[1750805266597,25.86240153,2440.6,2440.5,0.65531]
[1750805266797,25.85740153,2440.6,2440.5,0.65531]
[1750805267494,26.51268153,2440.6,2440.5,0.65531]
[1750805268502,25.8577857,2440.6,2440.5,0.65531]
[1750805270198,26.5130657,2440.6,2440.5,0.65531]
[1750805270393,25.8577857,2440.6,2440.5,0.65531]
[1750805270701,26.5130657,2440.6,2440.5,0.65531]
[1750805271406,0.65531,2440.5,2440.4,1.35262]
[1750805271596,0.65536,2440.4,2440.0,3.2078]
[1750805271795,24.908,2440.3,2440.2,0.65536]
[1750805272099,25.56336,2440.3,2440.2,0.65536]
[1750805272803,25.56336,2440.3,2440.1,2.6875]
[1750805273003,0.65539,2440.2,2440.1,1.3087]
[1750805273808,25.56337,2440.3,2440.2,0.65539]
[1750805274104,25.56337,2440.3,2440.1,0.6533]
[1750805274400,0.65539,2440.2,2440.1,1.3087]
[1750805275805,25.56338,2440.3,2440.2,0.65539]
[1750805276306,24.908,2440.3,2440.2,0.65539]
[1750805276501,25.56336,2440.3,2440.2,0.65539]
[1750805277104,24.908,2440.3,2440.2,0.65539]
[1750805278303,25.56336,2440.3,2440.2,0.65539]
[1750805278901,0.65539,2440.2,2440.1,1.3087]
[1750805279606,0.65539,2440.2,2440.1,0.6554]
[1750805280309,25.56337,2440.3,2440.2,0.65539]
[1750805280507,0.65539,2440.2,2440.1,0.6554]
[1750805281302,27.9583907,2440.3,2440.2,0.65539]
[1750805281808,27.3030107,2440.3,2440.1,0.6554]
[1750805282203,27.3030107,2440.3,2440.2,0.65539]
[1750805282408,24.904,2440.6,2440.5,0.6553]
[1750805282609,25.8423021,2440.6,2440.5,0.6553]
[1750805283211,26.4975921,2440.6,2440.5,0.6553]
[1750805283401,25.8423021,2440.6,2440.5,0.6553]
[1750805283714,0.65533,2440.5,2440.4,0.65533]
[1750805284024,1.5936321,2440.5,2440.4,0.65533]
[1750805284507,0.9383021,2440.5,2440.2,1.3908]
[1750805284709,3.0503607,2440.4,2440.3,0.65536]
[1750805284904,2.3950107,2440.4,2440.3,0.65536]
[1750805285309,0.65533,2440.5,2440.4,0.65533]
[1750805285516,1.59420704,2440.5,2440.4,0.65533]
[1750805286308,26.53620704,2440.5,2440.4,0.65533]
[1750805286514,25.88087704,2440.5,2440.4,0.65533]
[1750805286909,0.93887704,2440.5,2440.4,0.65533]
[1750805287107,25.87687704,2440.5,2440.4,0.65533]
[1750805287714,0.93887704,2440.5,2440.4,0.65533]
[1750805287906,25.87387704,2440.5,2440.4,0.65533]
[1750805288703,26.52918704,2440.5,2440.2,2.0421]
[1750805288918,0.93887704,2440.4,2440.3,0.65535]
[1750805289118,1.60657704,2440.4,2440.3,0.65535]
[1750805289313,2.26191704,2440.4,2440.3,0.65535]
[1750805289507,1.60657704,2440.4,2440.3,0.65535]
[1750805290017,2.26190704,2440.4,2440.3,0.65535]
[1750805290224,27.18790704,2440.4,2440.3,0.65535]
[1750805290425,0.65536,2440.3,2440.2,0.709]
[1750805290616,1.5968838,2440.3,2440.2,0.709]
[1750805291118,0.6554,2440.2,2440.0,0.65542]
[1750805291319,25.8735238,2440.1,2440.0,1.36092]
[1750805291718,0.65544,2440.0,2439.8,3.11160809]
[1750805291920,0.94138902,2439.9,2439.5,6.32483809]
[1750805292121,28.28738452,2439.8,2439.7,0.6555]
[1750805293322,25.89237382,2439.8,2439.7,0.6555]
[1750805293520,1.6383,2440.5,2439.7,0.6555]
[1750805293521,24.955,2440.2,2439.8,1.63868]
[1750805293725,3.2078,2440.3,2440.2,0.65539]
[1750805293925,29.11105471,2440.3,2440.2,0.65539]
[1750805294218,29.1111016,2440.3,2440.2,0.65539]
[1750805294416,25.9033016,2440.3,2440.2,0.65539]
[1750805295412,25.9173016,2440.3,2440.2,0.65539]
[1750805297220,0.9403016,2440.3,2440.2,0.65539]
[1750805297420,25.9163016,2440.3,2440.2,0.65539]
[1750805297815,12.0258107,2440.6,2440.5,0.65531]
[1750805298011,37.93785876,2440.6,2440.5,0.65531]
[1750805298219,37.93685876,2440.6,2440.5,0.65531]
[1750805298420,38.59213876,2440.6,2440.5,0.65531]
[1750805298815,37.93685876,2440.6,2440.5,0.65531]
[1750805299119,34.72805876,2440.6,2440.5,0.65531]
[1750805299322,0.94104806,2440.6,2440.5,0.65531]
[1750805299521,25.90604806,2440.6,2440.5,0.65531]
[1750805299825,25.90604806,2440.6,2440.5,2.70031]
[1750805300423,0.94104806,2440.6,2440.5,2.70031]
[1750805300623,25.91504806,2440.6,2440.5,2.70031]
[1750805300828,2.44633018,2441.2,2440.5,2.045]
[1750805301020,9.75763702,2441.2,2441.1,0.65515]
[1750805301322,0.65518,2441.0,2440.9,0.65519]
[1750805301514,0.65516,2441.1,2441.0,0.65517]
[1750805301719,1.59536361,2441.1,2441.0,0.65517]
[1750805302524,25.94120361,2441.1,2441.0,0.65517]
[1750805305727,25.93420361,2441.1,2441.0,0.65517]
[1750805306931,0.65519,2441.0,2440.9,0.6552]